Cogmind - Beta 14 @@@ ROGUE MODE // 2024.09.08 @ 21:27:57 Player: SpaceWalrus Result: Destroyed by G-47 Trooper with Particle Gun Performance ------------- Evolutions (2) 1000 Regions Visited (4) 800 Robots Destroyed (46) 230 Value Destroyed (1423) 1423 Prototype IDs (3) 60 Alien Tech Used (0) 0 Bonus (0) 0 TOTAL SCORE: 3513 Bonus ------- None Cogmind --------- Core Integrity 0/550 Matter 247/300 Energy 100/100 System Corruption 7% Temperature Cool (9) Movement Hovering (120) Ox1 Location -8/Materials Parts ------- > --- POWER (1) -------- (None) > --- PROPULSION (3) --- Improved Hover Unit > --- UTILITY (4) ------ (None) > --- WEAPON (3) ------- Precision Assault Rifle Precision Assault Rifle Scythe > --- INVENTORY (5) ---- Improved Cooling System Core Analyzer Armor Integrity Analyzer Dynamic Insulation System Pulse Rifle Peak State ------------ > --- POWER ------------ Improved Deuterium Engine > --- PROPULSION ------- Aluminum Leg Improved Hover Unit Improved Hover Unit > --- UTILITY ---------- Active Sensor Suite Improved Medium Armor Plating > --- WEAPON ----------- Precision Assault Rifle Precision Assault Rifle Scythe > --- INVENTORY -------- Improved Cooling System Armor Integrity Analyzer Dynamic Insulation System Pulse Rifle [Rating: 54] Favorites ----------- Power Light Nuclear Core Engine Ion Engine Power Core Light Nuclear Core Propulsion Aluminum Leg Leg Aluminum Leg Wheel Wheel Hover Unit Improved Hover Unit Utility Signal Interpreter Device Structural Scanner Processor Signal Interpreter Protection Medium Armor Plating Weapon Particle Gun Energy Gun Particle Gun Energy Cannon EM Pulse Cannon Ballistic Gun Assault Rifle Launcher Rocket Launcher Slashing Weapon Scythe Build | -11 -10 -10 -10 -8 ------- Run | Yrd Mat Min Sub Mat Slots Evolved 4 | . . . . 4 Power . | . . . . . Propulsion 1 | . . . . 1 Utility 2 | . . . . 2 Weapon 1 | . . . . 1 Parts Attached 60 | 7 11 7 . 35 Power 8 | 1 1 1 . 5 Engine 4 | 1 . . . 3 Core 4 | . 1 1 . 2 Reactor . | . . . . . Propulsion 17 | 2 4 3 . 8 Treads . | . . . . . Leg 10 | 2 . 2 . 6 Wheel 4 | . 3 1 . . Hover 3 | . 1 . . 2 Flight . | . . . . . Utility 13 | 2 1 2 . 8 Device 7 | 2 . 1 . 4 Storage . | . . . . . Processor 1 | . . 1 . . Hackware . | . . . . . Protection 5 | . 1 . . 4 Artifact . | . . . . . Weapon 22 | 2 5 1 . 14 Energy Gun 9 | 1 3 . . 5 Energy Cannon 2 | . . . . 2 Ballistic Gun 8 | 1 2 1 . 4 Ballistic Cannon . | . . . . . Launcher 1 | . . . . 1 Special Weapon . | . . . . . Impact Weapon . | . . . . . Slashing Weapon 2 | . . . . 2 Piercing Weapon . | . . . . . Special Melee Weapon . | . . . . . Unidentified Prototypes 3 | . . . . 3 Corrupted Parts 3 | . . . . 3 System Corruption 7 | . . . . 7 Parts Lost 30 | . 2 1 . 27 Power 6 | . . 1 . 5 Propulsion 9 | . 1 . . 8 Utility 6 | . . . . 6 Weapon 9 | . 1 . . 8 Highest Loss Streak 11 | . 1 1 . 11 To Critical Strikes 1 | . . . . 1 Average Slot Usage (%) 86 | . 92 99 100 69 Engine 4 | . 9 . . 5 Core 6 | . 4 13 14 3 Leg 16 | . 25 15 28 10 Wheel 4 | . . 12 . . Hover 1 | . 1 . . 3 Device 16 | . 23 14 14 13 Processor 6 | . . 10 14 7 Protection 3 | . 4 4 . 2 Energy Gun 9 | . 8 14 14 6 Energy Cannon 1 | . . . . 3 Ballistic Gun 10 | . 12 14 14 6 Slashing Weapon 1 | . . . . 4 Peak Build Rating 54 | 9 14 12 11 54 Average Rating 19 | 4 9 11 11 34 On Entrance 8 | . 9 13 11 11 Naked Turns . | . . . . . Heaviest Build 31 | 10 19 18 11 31 Greatest Support 34 | 20 20 20 20 34 Greatest Overweight (x) 7 | . 2 . . 7 Average Overweight (x) . | . . . . 1 Largest Inventory Capacity 5 | 5 5 5 5 5 Average Capacity 5 | 5 5 5 5 5 Most Carried 5 | 5 5 5 5 5 Average Carried 4 | 1 3 4 5 4 Final Capacity 5 | 5 5 5 5 5 Final Carried 5 | 1 5 5 5 5 Class Distribution -------------------- 36% | Scavenger-Mutant 34% | Mutant 18% | Scavenger-Assassin 3% | Tank Dominant Class ---------------- Mutant | -10/Materials Scavenger-Mutant | -10/Mines Scavenger-Mutant | -10/Subcaves Scavenger-Assassin | -8/Materials Resources | -11 -10 -10 -10 -8 ----------- Run | Yrd Mat Min Sub Mat Matter Collected 1078 | 283 203 104 . 488 Remotely . | . . . . . Salvage Created 1799 | 181 375 243 . 1000 Parts 106 | 8 18 11 . 69 Haulers Intercepted 1 | . 1 . . . Recyclers Shooed 2 | . 2 . . . Parts Field Recycled . | . . . . . Retrieved Matter . | . . . . . Parts Self-Destructed . | . . . . . Prevented . | . . . . . Kills | -11 -10 -10 -10 -8 ------- Run | Yrd Mat Min Sub Mat Combat Hostiles Destroyed 29 | . 6 4 . 19 Melee 2 | . . . . 2 Guns 20 | . 6 4 . 10 Cannons 4 | . . . . 4 AOE 3 | . . . . 3 Classes Destroyed 15 | 2 6 . . 7 Worker 5 | . 2 1 . 2 Builder 1 | . . . . 1 Tunneler 3 | 3 . . . . Hauler 1 | . 1 . . . Recycler 2 | 1 1 . . . Mechanic 1 | . 1 . . . Operator 1 | . 1 . . . Watcher 3 | . . . . 3 Swarmer 3 | . 3 . . . Grunt 15 | . 3 4 . 8 Duelist 1 | . . . . 1 Sentry 4 | . . . . 4 Specialist 4 | . . . . 4 Hunter 1 | . . . . 1 Heavy 1 | . . . . 1 Best Kill Streak 4 | 4 3 2 . 3 Combat Bots Only 3 | . 2 2 . 3 Max Kills in Single Turn 2 | 1 1 1 . 2 Gunslinging . | . . . . . Exploded 2 | . . . . 2 Melee 1 | . . . . 1 Uniques/NPCs Destroyed . | . . . . . Combat | -11 -10 -10 -10 -8 -------- Run | Yrd Mat Min Sub Mat Hostile Shots Fired 297 | . 58 20 . 219 Missed 70 | . 10 7 . 53 Damage Taken 3958 | . 572 165 . 3221 Core 733 | . 161 15 . 557 Absorbed by Shields . | . . . . . Core Remaining (%) 64 | 100 . . 29 . Volleys Fired 157 | 13 50 13 . 81 Largest 3 | 2 2 2 . 3 Hottest 128 | 70 90 85 . 128 Shots Fired 261 | 26 89 26 . 120 Gun 239 | 26 89 26 . 98 Cannon 17 | . . . . 17 Launcher 5 | . . . . 5 Special . | . . . . . Kinetic 130 | 13 48 13 . 56 Thermal 101 | 13 37 13 . 38 Explosive 5 | . . . . 5 Electromagnetic 25 | . 4 . . 21 Robot Hit Streak 9 | 2 7 8 . 9 Robot Miss Streak 5 | 3 5 2 . 3 Penetration Max 1 | . . . . 1 Secondary Targets 5 | . 3 1 . 1 Max Gunslinging Chain 1 | . 1 1 . 1 Shots Hit Robots 158 | 12 45 16 . 85 Core Hits 89 | 7 21 10 . 51 Critical Kills . | . . . . . Critical Parts Destroyed . | . . . . . Critical Strikes 1 | . 1 . . . Burn 1 | . 1 . . . Melee Attacks 3 | . . . . 3 Impact . | . . . . . Slashing 3 | . . . . 3 Piercing . | . . . . . Sneak Attacks . | . . . . . Combat Hostiles . | . . . . . Follow-up Attacks . | . . . . . Damage Inflicted 2978 | 131 583 235 . 2029 Guns 2198 | 131 583 231 . 1253 Cannons 270 | . . . . 270 Explosions 415 | . . . . 415 Melee 90 | . . . . 90 Ramming 5 | . . 4 . 1 Kinetic 1229 | 67 256 107 . 799 Thermal 886 | 64 285 124 . 413 Explosive 415 | . . . . 415 Electromagnetic 353 | . 42 . . 311 Impact . | . . . . . Slashing 90 | . . . . 90 Piercing . | . . . . . Highest Corruption 7 | . . . . 7 Average Corruption 4 | . . . . 4 Corruption Purged . | . . . . . Corruption Blocked . | . . . . . Effects 16 | . . . . 16 Message Errors 3 | . . . . 3 Matter Fused 3 | . . . . 3 Heat Flow Errors 5 | . . . . 5 Data Loss (minor) 3 | . . . . 3 Misfires 1 | . . . . 1 Weapon Failures 1 | . . . . 1 Overload Shots . | . . . . . Overflow Damage 5 | . . . . 5 Projectiles 5 | . . . . 5 Explosions . | . . . . . Melee . | . . . . . Knockbacks . | . . . . . Impact . | . . . . . Kinetic . | . . . . . Secondary . | . . . . . Self-Inflicted Damage . | . . . . . Shots . | . . . . . Rammed 1 | . . . . 1 Targets Rammed 2 | . . 1 . 1 Kicked 1 | . . 1 . . Crushed . | . . . . . Highest Temperature 408 | 160 315 143 . 408 Average Temperature 102 | 73 113 61 . 106 Received Heat Transfer 1404 | . 297 81 . 1026 Effects 6 | . 1 . . 5 Shutdowns 1 | . . . . 1 Interference 5 | . 1 . . 4 Siege Activations . | . . . . . Robots Corrupted . | . . . . . Combat Hostiles . | . . . . . Parts Fried 2 | . . . . 2 Impact Corruptions . | . . . . . Robots Melted . | . . . . . Combat Hostiles . | . . . . . Parts Melted 7 | . 2 1 . 4 Heat Transferred 2220 | 185 814 296 . 925 Parts Sabotaged . | . . . . . Parts Stolen . | . . . . . Parts Stripped . | . . . . . Power Chain Reactions . | . . . . . Alert | -11 -10 -10 -10 -8 ------- Run | Yrd Mat Min Sub Mat Peak Influence 314 | 20 153 124 . 314 Initial 34 | . 13 34 . 12 Average 65 | 9 70 33 . 92 Maximum Alert Level 1 | . . . . 1 Low Security (%) 95 | 100 100 100 . 88 Level 1 4 | . . . . 11 Level 2 . | . . . . . Level 3 . | . . . . . Level 4 . | . . . . . Level 5 . | . . . . . High Security . | . . . . . Max Security . | . . . . . Squads Dispatched 8 | . 1 . . 7 Investigation 3 | . . . . 3 Extermination . | . . . . . Reinforcement 5 | . 1 . . 4 Assault . | . . . . . Garrison . | . . . . . Intercept . | . . . . . Searches Triggered . | . . . . . Construction Impeded 1 | . . . . 1 Haulers Reinforced . | . . . . . Active Scanning Responses 1 | . . . . 1 Cargo Convoy Interrupts . | . . . . . Stealth | -11 -10 -10 -10 -8 --------- Run | Yrd Mat Min Sub Mat Distress Signals 4 | . 1 . . 3 Communications Jammed . | . . . . . Distress Signals . | . . . . . Times Spotted 55 | . 16 6 3 30 Peak Tracking Total 8 | . 4 2 3 8 Tactical Retreats 9 | . 2 1 . 6 Traps | -11 -10 -10 -10 -8 ------- Run | Yrd Mat Min Sub Mat Traps Triggered 2 | . . . . 2 Indirectly . | . . . . . Trap Hack Attempts . | . . . . . Triggered . | . . . . . Disarmed . | . . . . . Reprogrammed . | . . . . . Reused . | . . . . . Traps Extracted . | . . . . . Installed . | . . . . . Triggered . | . . . . . Machines | -11 -10 -10 -10 -8 ---------- Run | Yrd Mat Min Sub Mat Machines Disabled 1 | . . . . 1 Max in Single Turn 1 | . . . . 1 Machines Repaired . | . . . . . Machines Dismantled . | . . . . . Machines Sabotaged . | . . . . . Overloaded Fab Kills . | . . . . . Hacking | -11 -10 -10 -10 -8 --------- Run | Yrd Mat Min Sub Mat Machines Accessed 5 | . 2 1 . 2 Terminals 3 | . 2 . . 1 Fabricators . | . . . . . Repair Stations . | . . . . . Recycling Units . | . . . . . Scanalyzers . | . . . . . Garrison Access 1 | . . . . 1 Total Hacks 8 | . 3 1 . 4 Successful 3 | . 2 1 . . Failed 5 | . 1 . . 4 Catastrophic . | . . . . . Database Lockouts . | . . . . . Manual . | . . . . . Terminals 5 | . 3 . . 2 Fabricators . | . . . . . Repair Stations . | . . . . . Recycling Units . | . . . . . Scanalyzers . | . . . . . Garrison Access 2 | . . . . 2 Terminal Hacks 3 | . 2 1 . . Open Door 1 | . . 1 . . Emergency Access Points 1 | . 1 . . . Surveillance Status 1 | . 1 . . . Fabricator Hacks . | . . . . . Repair Station Hacks . | . . . . . Recycling Unit Hacks . | . . . . . Scanalyzer . | . . . . . Garrison Access Hacks . | . . . . . Unauthorized Hacks . | . . . . . Terminals . | . . . . . Fabricators . | . . . . . Repair Stations . | . . . . . Recycling Units . | . . . . . Scanalyzers . | . . . . . Garrison Access . | . . . . . Data Cores Recovered . | . . . . . Used . | . . . . . Hacking Detections 2 | . . . . 2 Full Trace Events . | . . . . . Feedback Events . | . . . . . Feedback Blocked . | . . . . . Robot Schematics Acquired . | . . . . . Robots Built . | . . . . . Authchips . | . . . . . Time . | . . . . . Total Robot Build Rating . | . . . . . Part Schematics Acquired . | . . . . . Parts Built . | . . . . . Authchips . | . . . . . Time . | . . . . . Total Part Build Rating . | . . . . . Parts Repaired . | . . . . . Time . | . . . . . Parts Recycled . | . . . . . Recycled Matter . | . . . . . Retrieved Matter . | . . . . . Retrieved Components . | . . . . . Parts Scanalyzed . | . . . . . Part Schematics Acquired . | . . . . . Parts Damaged . | . . . . . Bothacking | -11 -10 -10 -10 -8 ------------ Run | Yrd Mat Min Sub Mat Used RIF Installer . | . . . . . Robots Hacked . | . . . . . Non-combat . | . . . . . Combat . | . . . . . Robot Hacks Applied . | . . . . . Relay Couplers Released . | . . . . . Fabnet Peak Effective % . | . . . . . Robots Rewired . | . . . . . Allies Hacked . | . . . . . Hacks Repelled . | . . . . . Allies | -11 -10 -10 -10 -8 -------- Run | Yrd Mat Min Sub Mat Total Allies . | . . . . . Largest Group . | . . . . . Highest-Rated Group . | . . . . . Highest-Rated Ally . | . . . . . Total Orders . | . . . . . Ally Attacks 18 | . . . . 18 Total Damage 52 | . . . . 52 Kills . | . . . . . Allies Corrupted . | . . . . . Allies Melted . | . . . . . Intel | -11 -10 -10 -10 -8 ------- Run | Yrd Mat Min Sub Mat Robot Analysis Total . | . . . . . Derelict Logs Recovered 2 | . . 2 . . Drone Launches 5 | . . . . 5 Drone Recoveries 4 | . . . . 4 Exploration | -11 -10 -10 -10 -8 ------------- Run | Yrd Mat Min Sub Mat Turns Passed 2830 | 90 765 911 10 1054 Spaces Moved 1839 | 40 500 860 9 430 Core 56 | 11 . . . 45 Treads . | . . . . . Legs 1192 | 29 453 407 9 294 Wheels 497 | . 44 453 . . Hover 94 | . 3 . . 91 Flight . | . . . . . Fastest Speed 50 | 50 80 80 120 90 Average Speed 122 | 100 118 98 120 177 Slowest Speed 400 | 120 190 120 120 400 Overloaded Moves . | . . . . . Propulsion Burnouts . | . . . . . Robots Hopped . | . . . . . Cave-ins Triggered . | . . . . . Exploration Rate (%) 35 | 4 42 98 1 30 Regions Visited 4 Branch Regions 2 Pre-discovered Areas 1 | . . 1 . . Known Exits Taken 2 | . . 1 1 . Unknown Exits Taken 2 | 1 1 . . . Scrap Searched 2 | . . 2 . . Spaces Dug . | . . . . . Terrain Destroyed 58 | . . . . 58 Melee . | . . . . . Projectile . | . . . . . AOE 58 | . . . . 58 Terrain Rammed . | . . . . . Walls Destroyed . | . . . . . Machines Disabled . | . . . . . Actions | -11 -10 -10 -10 -8 --------- Run | Yrd Mat Min Sub Mat Total 2140 | 66 584 894 8 588 Wait 36 | . 12 7 . 17 Move 1835 | 39 499 859 8 430 Hop . | . . . . . Pick Up 29 | 7 7 2 . 13 Fast Attach 29 | 1 3 3 . 22 Attach 19 | 6 1 1 . 11 Detach 1 | . . . . 1 Swap 12 | . 7 3 . 2 Drop 17 | . 5 5 . 7 Fire 157 | 13 50 13 . 81 Melee 3 | . . . . 3 Ram 1 | . . . . 1 Kick 1 | . . 1 . . Crush . | . . . . . Escape Stasis . | . . . . . Rewire . | . . . . . Trap . | . . . . . Miscellaneous . | . . . . . Route ------- -11/Scrapyard -10/Materials -10/Mines (discovered 3 exits: *Mat x2 / *Sub) -10/Subcaves -8/Materials (discovered 1 exit: Fac) History --------- Turn | Location | Event 10 | -11/Scrapyard | Discovered new exit (range 16) 91 | -11/Scrapyard | Entered Materials 262 | -10/Materials | Core integrity fell below 50% 303 | -10/Materials | Build established: Mutant 617 | -10/Materials | Discovered new exit (range 8) 856 | -10/Materials | Entered Mines 885 | -10/Mines | Found the Drone Emporium 889 | -10/Mines | Found Prototype Device 927 | -10/Mines | Learned 4 Materials zone layouts 938 | -10/Mines | Discovered new exit (range 5) 939 | -10/Mines | Learned Materials terminal intel 950 | -10/Mines | Received a Rocket Launcher from a helpful Derelict 1032 | -10/Mines | Discovered new exit (range 5) 1057 | -10/Mines | Learned location of Storage (-9) 1092 | -10/Mines | Build established: Scavenger-Mutant 1124 | -10/Mines | Identified exit to Materials 1597 | -10/Mines | Discovered new exit (range 13) 1610 | -10/Mines | Identified exit to Subcaves 1767 | -10/Mines | Entered Subcaves 1767 | -10/Subcaves | Discovered new exit (range 7) 1776 | -10/Subcaves | Identified exit to Materials 1777 | -10/Subcaves | Entered Materials 1777 | -8/Materials | Evolved 4 slots: Propulsion x1, Utility x2, Weapon x1 1778 | -8/Materials | Identified exit to Factory 1778 | -8/Materials | Identified Thief Drone Bay 1779 | -8/Materials | Loaded intel: 9 terminal locations 2088 | -8/Materials | Lost 3 parts (1p1u1w) 2221 | -8/Materials | Found Prototype Device 2221 | -8/Materials | Identified Active Sensor Suite 2293 | -8/Materials | Lost 11 parts (2p3n2u4w) 2379 | -8/Materials | Core integrity fell below 50% 2541 | -8/Materials | Lost 4 parts (1p2n1w) 2669 | -8/Materials | Core integrity fell below 20% 2831 | -8/Materials | Destroyed by G-47 Trooper with Particle Gun Last Messages --------------- Acquired 46 matter. K-01 Serf collects debris. R-06 Scavenger collects Wheel. K-01 Serf collects debris. Acquired 24 matter. R-06 Scavenger collects Lgt. Treads. NPMHC:N581F9SHU8WYTFP,HK L-31 Rogue destroyed. Critical hit (Burn: +37). Imp. Deuterium Engine destroyed. K-01 Serf collects debris. Imp. Medium Armor Plating destroyed. Map ----- +----------------------------------------------------+ | ?????????????????????T"??????????????????????????? | | ?????????????????????""??????????????????????????? | | ??????????????????????????????????????????????T??? | | ????????????????????????? ?????????????????????? | | ????????????????????????? ?????????????????????? | | ????????????????????????# ?????????????????????? | | ????????????????????????+ #????????????????????? | | ????????????????????????# ????????????????????? | | ????????????????????????# ????????????????????? | | ??# #?????????????????# ????????????????????? | | ### #?????????????????# #????????????????????? | | ## #?????????????????#m u#????????????????????? | | ## ##????????????????# #????????????????????? | | # #????????????????+ u/????????????????????? | | # #????????????????# g #????????????????????? | | + #????????????????# #????????????????????? | | # #????????????????# #????????????????????? | | # #????????????????# gu#????????????????????? | | ## ##????????????????# ########?########????? | | ## #?????????????????# g #[[!! #?#! !! [#????? | | ### #?????????????????#k "%!!! #?#!!! [[#????? | | ??# #?????????????????#gg*#=!! #?# [ #????? | | ### #?????????????????#*k # = #?#### #????? | | # #?????????????????# # ######! #????? | | # ###????????######## ### + #????? | | # ? @#?############# #????? | | + ? #???##??######## ##????? | | # ? *#???# ## #?????? | | # ###??##############%#???# """"""" ## ##????? | | # #?????????????????#!#???# """"""" # #????? | | # #?????????????????# #???# """"""" # #????? | | ### #?????????????????# #???# """"""" + #????? | | #?????????????????# #???# """%""" # ###### | | #?????????????????# #???# [%= # # [[ | | ????????????????????????# #???# != # # [[ | | ?????????######?????????# #???#####+##### # [ | | ??######? ##????????# #??????# !# | | ??# #? #????????# #??????# # | | ??# #? ##????????# #??????#^ """ # ! | | ### #? #?????????# #??????# """ + | | + + #? #?????????# #??????# ^ """ # | | # # #? #??????#### ##?????# * ^ # | | # #########+########## ####### ! # | | # !% [ ! # | | + =%= % # | | # !! ###### | | ## ###################%! ####### ##"T"######## | | ## #?????????????????#######????## ############# | | ##*#????????????????????????#??### % ##???##### # | | # #######??????????#######?# #### ### #### #* | +----------------------------------------------------+ Best States ------------- Heat Dissipation 45 Energy Generation 16 Energy Capacity 290 Matter Stores 300 Matter Capacity 300 Sight Range 16 Robot Scan Range 20 Terrain Scan Range 16 Terrain Scan Density 10 Armor Coverage 450 Evasion (%) 55 Item Schematics ----------------- None Robot Schematics ------------------ None Fabricated ------------ Nothing Alien Tech Used ----------------- None Achievements -------------- None Challenges ------------ None Game ------ Seed TiamatVoltaicReactor Manual? 0 Play Time 00:26:37 Cumulative 27.2 hours Start 2024.09.08 @ 21:05:31 End 2024.09.08 @ 21:27:57 Sessions 1 Manual Loads 0 Difficulty Rogue Special Mode None Game No. 34 Rogue 34 Adventurer 0 Explorer 0 Win Type - Total 0 Types 0/0/0/0/0/0/0/0/0 Lore% 15 Gallery% 33 Achievement% 22 Wizard Run 0 Options --------- Layout 1 ASCII 0 Keyboard 0 Movement Numpad Keybinds 0 Fullscreen 1 Font 24/Smallcaps Map View 50x40 Zoom Use 0% Tactical HUD 0 Map Filters NONE Filters NONE Steam 1 RUN: be001c66-b51f-4cb8-a93d-00c57aa05bd1